[Event "Titled Tuesday Blitz August 22 Early 2023"]
[White "GaiozNigalidze"]
[Black "Moral Garcia, Serafin"]
[BlackFideId "2201925"]
[WhiteElo "2687"]
[BlackElo "2542"]
[Result "0-1"]
[Round "7"]
[TimeControl "180+1"]
[Date "2023.08.22"]
[WhiteClock "0:00:09"]
[BlackClock "0:00:24"]
[Board "77"]

1. d4 {[%clk 0:03:00]}  Nf6 {[%clk 0:02:57]} 2. c4 {[%clk 0:03:01]}  g6 {[%clk 0:02:57]} 3. Nc3 {[%clk 0:03:01]}  d5 {[%clk 0:02:53]} 4. Nf3 {[%clk 0:02:56]}  Bg7 {[%clk 0:02:53]} 5. Bg5 {[%clk 0:02:57]}  Ne4 {[%clk 0:02:51]} 6. cxd5 {[%clk 0:02:57]}  Nxg5 {[%clk 0:02:47]} 7. Nxg5 {[%clk 0:02:58]}  O-O {[%clk 0:02:47]} 8. Nf3 {[%clk 0:02:52]}  c6 {[%clk 0:02:42]} 9. dxc6 {[%clk 0:02:50]}  Nxc6 {[%clk 0:02:42]} 10. e3 {[%clk 0:02:50]}  e5 {[%clk 0:02:39]} 11. d5 {[%clk 0:02:35]}  e4 {[%clk 0:02:36]} 12. dxc6 {[%clk 0:02:35]}  exf3 {[%clk 0:02:33]} 13. Qxd8 {[%clk 0:01:49]}  Rxd8 {[%clk 0:02:33]} 14. c7 {[%clk 0:01:46]}  Rd7 {[%clk 0:02:32]} 15. gxf3 {[%clk 0:01:47]}  Rxc7 {[%clk 0:02:27]} 16. Rc1 {[%clk 0:01:17]}  Be6 {[%clk 0:02:13]} 17. Bd3 {[%clk 0:01:13]}  Rac8 {[%clk 0:02:09]} 18. Kd2 {[%clk 0:01:10]}  a6 {[%clk 0:02:02]} 19. a3 {[%clk 0:01:07]}  b5 {[%clk 0:01:52]} 20. Rhd1 {[%clk 0:00:43]}  Rc5 {[%clk 0:01:44]} 21. Rg1 {[%clk 0:00:35]}  Kf8 {[%clk 0:01:38]} 22. Rgd1 {[%clk 0:00:31]}  Ke7 {[%clk 0:01:32]} 23. Rg1 {[%clk 0:00:29]}  Rh5 {[%clk 0:01:29]} 24. Rh1 {[%clk 0:00:27]}  Rh3 {[%clk 0:01:27]} 25. Ke2 {[%clk 0:00:26]}  Be5 {[%clk 0:01:18]} 26. f4 {[%clk 0:00:26]}  Bg4+ {[%clk 0:01:15]} 27. Kd2 {[%clk 0:00:26]}  Bxc3+ {[%clk 0:01:14]} 28. Rxc3 {[%clk 0:00:26]}  Rxc3 {[%clk 0:01:13]} 29. Kxc3 {[%clk 0:00:26]}  Bf3 {[%clk 0:01:11]} 30. Rc1 {[%clk 0:00:25]}  Rxh2 {[%clk 0:01:11]} 31. Rc2 {[%clk 0:00:24]}  h5 {[%clk 0:01:06]} 32. Kb4 {[%clk 0:00:25]}  h4 {[%clk 0:01:04]} 33. Ka5 {[%clk 0:00:25]}  h3 {[%clk 0:01:01]} 34. Kxa6 {[%clk 0:00:26]}  Rh1 {[%clk 0:00:57]} 35. Be2 {[%clk 0:00:23]}  Bxe2 {[%clk 0:00:47]} 36. Rxe2 {[%clk 0:00:24]}  Rg1 {[%clk 0:00:48]} 37. f3 {[%clk 0:00:22]}  Rg2 {[%clk 0:00:45]} 38. Re1 {[%clk 0:00:22]}  Rxb2 {[%clk 0:00:46]} 39. Rh1 {[%clk 0:00:22]}  h2 {[%clk 0:00:42]} 40. e4 {[%clk 0:00:20]}  Kf6 {[%clk 0:00:39]} 41. Kb6 {[%clk 0:00:20]}  g5 {[%clk 0:00:40]} 42. f5 {[%clk 0:00:16]}  Ke5 {[%clk 0:00:40]} 43. Kc5 {[%clk 0:00:16]}  Kf4 {[%clk 0:00:37]} 44. Kd6 {[%clk 0:00:15]}  Kxf3 {[%clk 0:00:35]} 45. e5 {[%clk 0:00:15]}  Kg2 {[%clk 0:00:34]} 46. Rxh2+ {[%clk 0:00:15]}  Kxh2 {[%clk 0:00:34]} 47. Ke7 {[%clk 0:00:16]}  Rf2 {[%clk 0:00:28]} 48. f6 {[%clk 0:00:09]}  Rf5 {[%clk 0:00:24]} 0-1


[Site "https://www.chess.com"]

[Event "Titled Tuesday Blitz August 22 Early 2023"]
[White "Korchmar, Vasiliy"]
[Black "subham777"]
[WhiteFideId "24131750"]
[WhiteElo "2675"]
[BlackElo "2538"]
[Result "1-0"]
[Round "7"]
[TimeControl "180+1"]
[Date "2023.08.22"]
[WhiteClock "0:02:03"]
[BlackClock "0:00:00"]
[Board "80"]

1. e4 {[%clk 0:03:00]}  e6 {[%clk 0:02:59]} 2. d4 {[%clk 0:03:00]}  d5 {[%clk 0:02:58]} 3. e5 {[%clk 0:03:01]}  c5 {[%clk 0:02:59]} 4. c3 {[%clk 0:03:02]}  Nc6 {[%clk 0:02:59]} 5. Nf3 {[%clk 0:03:02]}  Qb6 {[%clk 0:03:00]} 6. Be2 {[%clk 0:03:03]}  cxd4 {[%clk 0:02:58]} 7. cxd4 {[%clk 0:03:03]}  Nge7 {[%clk 0:02:54]} 8. Na3 {[%clk 0:03:04]}  Nf5 {[%clk 0:02:52]} 9. Nc2 {[%clk 0:03:04]}  Nb4 {[%clk 0:02:42]} 10. Ne3 {[%clk 0:02:59]}  Nxe3 {[%clk 0:02:37]} 11. Bxe3 {[%clk 0:02:59]}  Be7 {[%clk 0:02:31]} 12. O-O {[%clk 0:02:56]}  O-O {[%clk 0:02:29]} 13. a3 {[%clk 0:02:43]}  Nc6 {[%clk 0:02:28]} 14. b4 {[%clk 0:02:43]}  Bd7 {[%clk 0:02:23]} 15. Bd3 {[%clk 0:02:40]}  Rac8 {[%clk 0:02:18]} 16. h4 {[%clk 0:02:38]}  f5 {[%clk 0:02:07]} 17. exf6 {[%clk 0:02:13]}  Bxf6 {[%clk 0:02:06]} 18. Ne5 {[%clk 0:02:06]}  Bxe5 {[%clk 0:01:40]} 19. dxe5 {[%clk 0:02:07]}  Qd8 {[%clk 0:01:27]} 20. Qh5 {[%clk 0:02:07]}  g6 {[%clk 0:01:24]} 21. Bxg6 {[%clk 0:02:08]}  hxg6 {[%clk 0:01:24]} 22. Qxg6+ {[%clk 0:02:08]}  Kh8 {[%clk 0:01:25]} 23. Qh6+ {[%clk 0:02:09]}  Kg8 {[%clk 0:01:24]} 24. Qg6+ {[%clk 0:02:10]}  Kh8 {[%clk 0:01:23]} 25. Bg5 {[%clk 0:02:11]}  Qe8 {[%clk 0:00:54]} 26. Qh6+ {[%clk 0:01:59]}  Kg8 {[%clk 0:00:53]} 27. Bf6 {[%clk 0:02:00]}  Rxf6 {[%clk 0:00:43]} 28. exf6 {[%clk 0:02:01]}  Qf7 {[%clk 0:00:38]} 29. Rac1 {[%clk 0:02:01]}  Qh7 {[%clk 0:00:22]} 30. f7+ {[%clk 0:02:02]}  Qxf7 {[%clk 0:00:08]} 31. Rc3 {[%clk 0:02:02]}  Qg7 {[%clk 0:00:01]} 32. Rg3 {[%clk 0:02:03]}  Qxg3 {[%clk 0:00:01]} 33. fxg3 {[%clk 0:02:04]}  Ne7 {[%clk 0:00:01]} 34. Qg5+ {[%clk 0:02:03]}  Ng6 {[%clk 0:00:00]} 35. Qxg6+ {[%clk 0:02:03]} 1-0


[Site "https://www.chess.com"]

[Event "Titled Tuesday Blitz August 22 Early 2023"]
[White "Janaszak, Dawid"]
[Black "Agibileg, Uurtsaikh"]
[WhiteFideId "1119206"]
[BlackFideId "4901606"]
[WhiteElo "2497"]
[BlackElo "2634"]
[Result "1-0"]
[Round "7"]
[TimeControl "180+1"]
[Date "2023.08.22"]
[WhiteClock "0:00:10"]
[BlackClock "0:00:00"]
[Board "84"]

1. e4 {[%clk 0:03:00]}  c5 {[%clk 0:02:59]} 2. Nc3 {[%clk 0:03:00]}  e6 {[%clk 0:02:58]} 3. Nge2 {[%clk 0:02:52]}  d5 {[%clk 0:02:58]} 4. exd5 {[%clk 0:02:49]}  exd5 {[%clk 0:02:58]} 5. d4 {[%clk 0:02:49]}  Bg4 {[%clk 0:02:59]} 6. h3 {[%clk 0:02:44]}  Bh5 {[%clk 0:02:58]} 7. g4 {[%clk 0:02:43]}  Bg6 {[%clk 0:02:58]} 8. Bg2 {[%clk 0:02:39]}  Nf6 {[%clk 0:02:57]} 9. Bg5 {[%clk 0:02:38]}  Be7 {[%clk 0:02:45]} 10. Bxf6 {[%clk 0:02:32]}  Bxf6 {[%clk 0:02:45]} 11. Nxd5 {[%clk 0:02:33]}  O-O {[%clk 0:02:31]} 12. O-O {[%clk 0:02:31]}  Bxd4 {[%clk 0:02:17]} 13. Nxd4 {[%clk 0:02:29]}  cxd4 {[%clk 0:02:18]} 14. Qxd4 {[%clk 0:02:28]}  Nc6 {[%clk 0:02:17]} 15. Qd2 {[%clk 0:02:21]}  Rc8 {[%clk 0:02:04]} 16. Rfe1 {[%clk 0:02:19]}  Qh4 {[%clk 0:01:57]} 17. c3 {[%clk 0:01:54]}  h5 {[%clk 0:01:52]} 18. Qf4 {[%clk 0:01:49]}  hxg4 {[%clk 0:01:21]} 19. Qxg4 {[%clk 0:01:49]}  Qh6 {[%clk 0:00:59]} 20. Qf4 {[%clk 0:01:39]}  Qxf4 {[%clk 0:00:52]} 21. Nxf4 {[%clk 0:01:39]}  Bf5 {[%clk 0:00:52]} 22. Be4 {[%clk 0:01:30]}  Bxe4 {[%clk 0:00:50]} 23. Rxe4 {[%clk 0:01:30]}  Rfd8 {[%clk 0:00:50]} 24. Rae1 {[%clk 0:01:27]}  Rd2 {[%clk 0:00:49]} 25. R1e2 {[%clk 0:01:25]}  Rd1+ {[%clk 0:00:41]} 26. Kg2 {[%clk 0:01:24]}  Kh7 {[%clk 0:00:38]} 27. a3 {[%clk 0:01:14]}  Rcd8 {[%clk 0:00:27]} 28. Nh5 {[%clk 0:01:12]}  R8d6 {[%clk 0:00:23]} 29. Ng3 {[%clk 0:01:06]}  f6 {[%clk 0:00:17]} 30. Rh4+ {[%clk 0:01:05]}  Kg8 {[%clk 0:00:12]} 31. Rg4 {[%clk 0:01:04]}  R1d5 {[%clk 0:00:09]} 32. h4 {[%clk 0:00:56]}  Kf7 {[%clk 0:00:09]} 33. h5 {[%clk 0:00:56]}  Ne5 {[%clk 0:00:09]} 34. Rb4 {[%clk 0:00:53]}  b6 {[%clk 0:00:09]} 35. Ra4 {[%clk 0:00:50]}  Rd7 {[%clk 0:00:08]} 36. Rae4 {[%clk 0:00:46]}  Nd3 {[%clk 0:00:07]} 37. c4 {[%clk 0:00:29]}  Rg5 {[%clk 0:00:06]} 38. Kf1 {[%clk 0:00:18]}  Ne5 {[%clk 0:00:04]} 39. b3 {[%clk 0:00:15]}  Nf3 {[%clk 0:00:04]} 40. Kg2 {[%clk 0:00:11]}  Nd2 {[%clk 0:00:00]} 41. R4e3 {[%clk 0:00:10]} 1-0


[Site "https://www.chess.com"]

[Event "Titled Tuesday Blitz August 22 Early 2023"]
[White "Zarubitski, Viachaslau"]
[Black "Marn, Jan"]
[WhiteFideId "13509373"]
[BlackFideId "14619245"]
[WhiteElo "2626"]
[BlackElo "2492"]
[Result "0-1"]
[Round "7"]
[TimeControl "180+1"]
[Date "2023.08.22"]
[WhiteClock "0:00:03"]
[BlackClock "0:00:04"]
[Board "86"]

1. e4 {[%clk 0:03:00]}  e5 {[%clk 0:02:59]} 2. Nf3 {[%clk 0:03:00]}  Nc6 {[%clk 0:02:59]} 3. Bc4 {[%clk 0:03:00]}  Bc5 {[%clk 0:02:59]} 4. b4 {[%clk 0:02:59]}  Bxb4 {[%clk 0:02:58]} 5. c3 {[%clk 0:03:00]}  Be7 {[%clk 0:02:57]} 6. d4 {[%clk 0:02:57]}  Na5 {[%clk 0:02:58]} 7. Bd3 {[%clk 0:02:47]}  d6 {[%clk 0:02:57]} 8. O-O {[%clk 0:02:44]}  Nf6 {[%clk 0:02:56]} 9. Qa4+ {[%clk 0:02:40]}  c6 {[%clk 0:02:56]} 10. dxe5 {[%clk 0:02:36]}  dxe5 {[%clk 0:02:56]} 11. Nxe5 {[%clk 0:02:37]}  O-O {[%clk 0:02:56]} 12. Bf4 {[%clk 0:02:23]}  Nh5 {[%clk 0:02:33]} 13. Be3 {[%clk 0:02:12]}  Bf6 {[%clk 0:02:31]} 14. Nf3 {[%clk 0:01:18]}  Qxd3 {[%clk 0:02:03]} 15. Qxa5 {[%clk 0:01:18]}  b5 {[%clk 0:02:04]} 16. e5 {[%clk 0:00:47]}  Bd8 {[%clk 0:01:59]} 17. Qb4 {[%clk 0:00:47]}  g6 {[%clk 0:01:10]} 18. Nbd2 {[%clk 0:00:41]}  a5 {[%clk 0:00:53]} 19. Qc5 {[%clk 0:00:40]}  Qd5 {[%clk 0:00:53]} 20. Qxd5 {[%clk 0:00:37]}  cxd5 {[%clk 0:00:53]} 21. Rab1 {[%clk 0:00:35]}  b4 {[%clk 0:00:45]} 22. cxb4 {[%clk 0:00:26]}  axb4 {[%clk 0:00:46]} 23. Bc5 {[%clk 0:00:24]}  Re8 {[%clk 0:00:46]} 24. Rb2 {[%clk 0:00:24]}  Nf4 {[%clk 0:00:40]} 25. Nb3 {[%clk 0:00:11]}  Nd3 {[%clk 0:00:19]} 26. Rc2 {[%clk 0:00:11]}  Nxe5 {[%clk 0:00:16]} 27. Nxe5 {[%clk 0:00:08]}  Rxe5 {[%clk 0:00:17]} 28. Bd4 {[%clk 0:00:08]}  Re8 {[%clk 0:00:15]} 29. Rfc1 {[%clk 0:00:06]}  Be6 {[%clk 0:00:12]} 30. f4 {[%clk 0:00:05]}  Bf5 {[%clk 0:00:12]} 31. Rc5 {[%clk 0:00:04]}  Be4 {[%clk 0:00:11]} 32. Rb5 {[%clk 0:00:03]}  Rxa2 {[%clk 0:00:10]} 33. Rb8 {[%clk 0:00:03]}  Rxg2+ {[%clk 0:00:09]} 34. Kf1 {[%clk 0:00:04]}  Rxh2 {[%clk 0:00:09]} 35. Rcc8 {[%clk 0:00:03]}  f6 {[%clk 0:00:04]} 36. Rxd8 {[%clk 0:00:03]}  Rxd8 {[%clk 0:00:04]} 37. Rxd8+ {[%clk 0:00:03]}  Kf7 {[%clk 0:00:05]} 38. Rd7+ {[%clk 0:00:03]}  Ke6 {[%clk 0:00:05]} 39. Rb7 {[%clk 0:00:03]}  Kf5 {[%clk 0:00:03]} 40. Nc5 {[%clk 0:00:03]}  Kxf4 {[%clk 0:00:03]} 41. Nxe4 {[%clk 0:00:03]}  Kxe4 {[%clk 0:00:03]} 42. Rxb4 {[%clk 0:00:03]}  Kf5 {[%clk 0:00:03]} 43. Rb6 {[%clk 0:00:02]}  Kg5 {[%clk 0:00:02]} 44. Bxf6+ {[%clk 0:00:02]}  Kg4 {[%clk 0:00:02]} 45. Bd4 {[%clk 0:00:01]}  Rd2 {[%clk 0:00:02]} 46. Be3 {[%clk 0:00:02]}  Rd3 {[%clk 0:00:03]} 47. Ke2 {[%clk 0:00:02]}  Ra3 {[%clk 0:00:03]} 48. Rb4+ {[%clk 0:00:02]}  Kf5 {[%clk 0:00:03]} 49. Rf4+ {[%clk 0:00:03]}  Ke5 {[%clk 0:00:04]} 50. Rh4 {[%clk 0:00:03]}  h5 {[%clk 0:00:04]} 51. Rf4 {[%clk 0:00:03]}  Ra2+ {[%clk 0:00:01]} 52. Kf3 {[%clk 0:00:03]}  Ra3 {[%clk 0:00:02]} 53. Rf8 {[%clk 0:00:04]}  d4 {[%clk 0:00:02]} 54. Re8+ {[%clk 0:00:04]}  Kf6 {[%clk 0:00:03]} 55. Rf8+ {[%clk 0:00:03]}  Kg7 {[%clk 0:00:03]} 56. Rd8 {[%clk 0:00:03]}  Rxe3+ {[%clk 0:00:03]} 57. Kf4 {[%clk 0:00:04]}  Re7 {[%clk 0:00:02]} 58. Rxd4 {[%clk 0:00:04]}  Rf7+ {[%clk 0:00:03]} 59. Kg5 {[%clk 0:00:03]}  Rf5+ {[%clk 0:00:03]} 60. Kh4 {[%clk 0:00:04]}  Kh6 {[%clk 0:00:04]} 61. Rd6 {[%clk 0:00:04]}  Ra5 {[%clk 0:00:04]} 62. Kg3 {[%clk 0:00:05]}  Ra3+ {[%clk 0:00:03]} 63. Kh4 {[%clk 0:00:04]}  Ra4+ {[%clk 0:00:04]} 64. Kg3 {[%clk 0:00:04]}  h4+ {[%clk 0:00:04]} 65. Kh3 {[%clk 0:00:04]}  Kh5 {[%clk 0:00:04]} 66. Rd8 {[%clk 0:00:04]}  Ra3+ {[%clk 0:00:05]} 67. Kh2 {[%clk 0:00:04]}  g5 {[%clk 0:00:04]} 68. Rd4 {[%clk 0:00:04]}  Ra2+ {[%clk 0:00:03]} 69. Kh3 {[%clk 0:00:04]}  Ra3+ {[%clk 0:00:04]} 70. Kh2 {[%clk 0:00:05]}  h3 {[%clk 0:00:04]} 71. Rc4 {[%clk 0:00:04]}  g4 {[%clk 0:00:04]} 72. Rc8 {[%clk 0:00:04]}  Ra2+ {[%clk 0:00:03]} 73. Kg3 {[%clk 0:00:05]}  Rg2+ {[%clk 0:00:03]} 74. Kf4 {[%clk 0:00:06]}  h2 {[%clk 0:00:04]} 75. Rh8+ {[%clk 0:00:06]}  Kg6 {[%clk 0:00:04]} 76. Rh4 {[%clk 0:00:06]}  g3 {[%clk 0:00:04]} 77. Kf3 {[%clk 0:00:03]}  Rg1 {[%clk 0:00:04]} 0-1


[Site "https://www.chess.com"]

[Event "Titled Tuesday Blitz August 22 Early 2023"]
[White "WindWhistler11"]
[Black "Arat, Ufuk Sezen"]
[BlackFideId "6309089"]
[WhiteElo "2470"]
[BlackElo "2615"]
[Result "1-0"]
[Round "7"]
[TimeControl "180+1"]
[Date "2023.08.22"]
[WhiteClock "0:01:32"]
[BlackClock "0:01:50"]
[Board "87"]

1. Nf3 {[%clk 0:02:57]}  Nf6 {[%clk 0:02:58]} 2. g3 {[%clk 0:02:57]}  d5 {[%clk 0:02:58]} 3. c4 {[%clk 0:02:57]}  e6 {[%clk 0:02:57]} 4. Bg2 {[%clk 0:02:57]}  Be7 {[%clk 0:02:57]} 5. O-O {[%clk 0:02:58]}  O-O {[%clk 0:02:58]} 6. b3 {[%clk 0:02:58]}  c5 {[%clk 0:02:56]} 7. Bb2 {[%clk 0:02:56]}  Nc6 {[%clk 0:02:56]} 8. cxd5 {[%clk 0:02:56]}  exd5 {[%clk 0:02:56]} 9. d4 {[%clk 0:02:56]}  Ne4 {[%clk 0:02:56]} 10. Nc3 {[%clk 0:02:52]}  Bf6 {[%clk 0:02:52]} 11. e3 {[%clk 0:02:23]}  Nxc3 {[%clk 0:02:48]} 12. Bxc3 {[%clk 0:02:23]}  Bg4 {[%clk 0:02:48]} 13. Qd2 {[%clk 0:02:18]}  Bxf3 {[%clk 0:02:44]} 14. Bxf3 {[%clk 0:02:17]}  cxd4 {[%clk 0:02:45]} 15. Bxd4 {[%clk 0:02:17]}  Bxd4 {[%clk 0:02:42]} 16. exd4 {[%clk 0:02:16]}  Qf6 {[%clk 0:02:34]} 17. Bxd5 {[%clk 0:02:14]}  Nxd4 {[%clk 0:02:34]} 18. Rad1 {[%clk 0:02:11]}  Rad8 {[%clk 0:02:31]} 19. Qxd4 {[%clk 0:02:07]}  Qa6 {[%clk 0:02:14]} 20. Qc4 {[%clk 0:01:49]}  b5 {[%clk 0:02:06]} 21. Bxf7+ {[%clk 0:01:44]}  Kh8 {[%clk 0:02:07]} 22. Rxd8 {[%clk 0:01:44]}  Rxd8 {[%clk 0:02:08]} 23. Qe2 {[%clk 0:01:43]}  Qf6 {[%clk 0:02:05]} 24. Bh5 {[%clk 0:01:42]}  b4 {[%clk 0:02:05]} 25. Re1 {[%clk 0:01:41]}  h6 {[%clk 0:02:01]} 26. Bf3 {[%clk 0:01:40]}  Rf8 {[%clk 0:02:00]} 27. Be4 {[%clk 0:01:40]}  a5 {[%clk 0:01:59]} 28. Bd3 {[%clk 0:01:38]}  Rd8 {[%clk 0:01:50]} 29. Qe8+ {[%clk 0:01:32]} 1-0


[Site "https://www.chess.com"]

[Event "Titled Tuesday Blitz August 22 Early 2023"]
[White "Baches Garcia, Guillermo"]
[Black "Gimenez Aguirre, Alejo Ismael"]
[WhiteFideId "2209764"]
[BlackFideId "32041667"]
[WhiteElo "2435"]
[BlackElo "2609"]
[Result "0-1"]
[Round "7"]
[TimeControl "180+1"]
[Date "2023.08.22"]
[WhiteClock "0:00:05"]
[BlackClock "0:01:21"]
[Board "88"]

1. e4 {[%clk 0:03:00]}  c5 {[%clk 0:02:56]} 2. Nf3 {[%clk 0:03:00]}  g6 {[%clk 0:02:55]} 3. d4 {[%clk 0:03:00]}  cxd4 {[%clk 0:02:54]} 4. Qxd4 {[%clk 0:03:00]}  Nf6 {[%clk 0:02:54]} 5. c4 {[%clk 0:03:00]}  Nc6 {[%clk 0:02:54]} 6. Qe3 {[%clk 0:03:01]}  Bg7 {[%clk 0:02:54]} 7. h3 {[%clk 0:03:01]}  d6 {[%clk 0:02:54]} 8. Be2 {[%clk 0:03:01]}  O-O {[%clk 0:02:55]} 9. O-O {[%clk 0:03:01]}  Be6 {[%clk 0:02:55]} 10. Nc3 {[%clk 0:03:01]}  Qa5 {[%clk 0:02:53]} 11. Rb1 {[%clk 0:02:53]}  Rfc8 {[%clk 0:02:50]} 12. Rd1 {[%clk 0:02:51]}  Ne5 {[%clk 0:02:49]} 13. b3 {[%clk 0:02:31]}  Nfg4 {[%clk 0:02:20]} 14. hxg4 {[%clk 0:02:06]}  Nxg4 {[%clk 0:02:19]} 15. Qg5 {[%clk 0:02:03]}  Bxc3 {[%clk 0:02:11]} 16. Nd4 {[%clk 0:01:33]}  Rc5 {[%clk 0:01:28]} 17. Qxe7 {[%clk 0:01:27]}  Bxd4 {[%clk 0:01:24]} 18. Rxd4 {[%clk 0:00:05]}  Qe1+ {[%clk 0:01:21]} 0-1


[Site "https://www.chess.com"]

[Event "Titled Tuesday Blitz August 22 Early 2023"]
[White "Tiarks, Jann-Christian"]
[Black "Boarish_Male"]
[WhiteFideId "12951595"]
[WhiteElo "2323"]
[BlackElo "2606"]
[Result "0-1"]
[Round "7"]
[TimeControl "180+1"]
[Date "2023.08.22"]
[WhiteClock "0:00:58"]
[BlackClock "0:00:16"]
[Board "89"]

1. e4 {[%clk 0:03:00]}  c5 {[%clk 0:02:59]} 2. Nc3 {[%clk 0:02:58]}  Nc6 {[%clk 0:02:57]} 3. g3 {[%clk 0:02:57]}  g6 {[%clk 0:02:55]} 4. Bg2 {[%clk 0:02:58]}  Bg7 {[%clk 0:02:52]} 5. Nge2 {[%clk 0:02:58]}  d6 {[%clk 0:02:50]} 6. d3 {[%clk 0:02:57]}  e6 {[%clk 0:02:50]} 7. Be3 {[%clk 0:02:56]}  Nge7 {[%clk 0:02:47]} 8. Qd2 {[%clk 0:02:56]}  Rb8 {[%clk 0:02:42]} 9. Bh6 {[%clk 0:02:55]}  O-O {[%clk 0:02:40]} 10. h4 {[%clk 0:02:55]}  Nd4 {[%clk 0:02:33]} 11. Bxg7 {[%clk 0:02:53]}  Kxg7 {[%clk 0:02:33]} 12. h5 {[%clk 0:02:53]}  Ng8 {[%clk 0:02:26]} 13. O-O-O {[%clk 0:02:52]}  b5 {[%clk 0:02:22]} 14. Nxd4 {[%clk 0:02:53]}  cxd4 {[%clk 0:02:23]} 15. Ne2 {[%clk 0:02:53]}  e5 {[%clk 0:02:18]} 16. Kb1 {[%clk 0:02:50]}  b4 {[%clk 0:02:15]} 17. f4 {[%clk 0:02:40]}  f5 {[%clk 0:02:06]} 18. Rh2 {[%clk 0:02:31]}  Be6 {[%clk 0:01:53]} 19. exf5 {[%clk 0:02:30]}  gxf5 {[%clk 0:01:51]} 20. h6+ {[%clk 0:02:22]}  Kh8 {[%clk 0:01:49]} 21. Re1 {[%clk 0:02:18]}  Qa5 {[%clk 0:01:44]} 22. b3 {[%clk 0:02:15]}  Qd8 {[%clk 0:01:13]} 23. Nxd4 {[%clk 0:02:11]}  exd4 {[%clk 0:01:05]} 24. Rxe6 {[%clk 0:02:09]}  Rf6 {[%clk 0:01:06]} 25. Qe1 {[%clk 0:02:03]}  Qf8 {[%clk 0:01:01]} 26. Bd5 {[%clk 0:02:00]}  Rxe6 {[%clk 0:00:32]} 27. Qxe6 {[%clk 0:01:58]}  Re8 {[%clk 0:00:33]} 28. Qd7 {[%clk 0:01:50]}  Re7 {[%clk 0:00:28]} 29. Qb5 {[%clk 0:01:43]}  Nxh6 {[%clk 0:00:25]} 30. Qxb4 {[%clk 0:01:41]}  Qf6 {[%clk 0:00:20]} 31. Rh1 {[%clk 0:01:09]}  Kg7 {[%clk 0:00:19]} 32. Qb8 {[%clk 0:01:07]}  Qg6 {[%clk 0:00:16]} 33. Qg8+ {[%clk 0:00:58]}  Nxg8 {[%clk 0:00:16]} 0-1


[Site "https://www.chess.com"]

[Event "Titled Tuesday Blitz August 22 Early 2023"]
[White "Miguelitro69"]
[Black "Borgaonkar Akshay"]
[BlackFideId "25639110"]
[WhiteElo "2278"]
[BlackElo "2592"]
[Result "0-1"]
[Round "7"]
[TimeControl "180+1"]
[Date "2023.08.22"]
[WhiteClock "0:00:00"]
[BlackClock "0:00:09"]
[Board "90"]

1. e4 {[%clk 0:02:54]}  Nf6 {[%clk 0:03:00]} 2. d3 {[%clk 0:02:44]}  e5 {[%clk 0:02:57]} 3. g3 {[%clk 0:02:43]}  h5 {[%clk 0:02:57]} 4. h4 {[%clk 0:02:42]}  d5 {[%clk 0:02:58]} 5. Bg2 {[%clk 0:02:30]}  dxe4 {[%clk 0:02:58]} 6. dxe4 {[%clk 0:02:26]}  Qxd1+ {[%clk 0:02:58]} 7. Kxd1 {[%clk 0:02:26]}  Bc5 {[%clk 0:02:59]} 8. Ke1 {[%clk 0:02:22]}  Nc6 {[%clk 0:02:53]} 9. c3 {[%clk 0:02:21]}  Be6 {[%clk 0:02:52]} 10. Nd2 {[%clk 0:02:20]}  O-O-O {[%clk 0:02:52]} 11. Nh3 {[%clk 0:02:19]}  Rd3 {[%clk 0:02:48]} 12. Ng5 {[%clk 0:02:12]}  Ng4 {[%clk 0:02:48]} 13. Rf1 {[%clk 0:01:59]}  Rhd8 {[%clk 0:02:40]} 14. Nxe6 {[%clk 0:01:58]}  fxe6 {[%clk 0:02:41]} 15. Bh3 {[%clk 0:01:48]}  Kb8 {[%clk 0:02:16]} 16. Bxg4 {[%clk 0:01:46]}  hxg4 {[%clk 0:02:17]} 17. Nc4 {[%clk 0:01:45]}  Rd1+ {[%clk 0:02:04]} 18. Ke2 {[%clk 0:01:45]}  Rxf1 {[%clk 0:02:04]} 19. Kxf1 {[%clk 0:01:45]}  Rd1+ {[%clk 0:02:04]} 20. Ke2 {[%clk 0:01:44]}  Rh1 {[%clk 0:02:05]} 21. Ne3 {[%clk 0:01:33]}  Bxe3 {[%clk 0:02:02]} 22. Kxe3 {[%clk 0:01:34]}  b5 {[%clk 0:01:57]} 23. b3 {[%clk 0:01:33]}  Re1+ {[%clk 0:01:31]} 24. Kd3 {[%clk 0:01:32]}  Rd1+ {[%clk 0:01:15]} 25. Ke2 {[%clk 0:01:31]}  Rd7 {[%clk 0:01:04]} 26. Be3 {[%clk 0:01:14]}  a5 {[%clk 0:01:00]} 27. a4 {[%clk 0:01:12]}  b4 {[%clk 0:01:00]} 28. Rc1 {[%clk 0:01:08]}  Kb7 {[%clk 0:00:57]} 29. cxb4 {[%clk 0:01:06]}  Nxb4 {[%clk 0:00:56]} 30. Rc5 {[%clk 0:01:06]}  Nc6 {[%clk 0:00:53]} 31. Rb5+ {[%clk 0:01:02]}  Ka6 {[%clk 0:00:53]} 32. Bc5 {[%clk 0:00:56]}  Rd4 {[%clk 0:00:49]} 33. Ke3 {[%clk 0:00:30]}  Rd1 {[%clk 0:00:49]} 34. Bf8 {[%clk 0:00:30]}  Nd4 {[%clk 0:00:44]} 35. Rxe5 {[%clk 0:00:29]}  c6 {[%clk 0:00:31]} 36. Bxg7 {[%clk 0:00:25]}  Nxb3 {[%clk 0:00:19]} 37. Rxe6 {[%clk 0:00:25]}  Kb6 {[%clk 0:00:18]} 38. Kf4 {[%clk 0:00:22]}  Nc5 {[%clk 0:00:17]} 39. Rg6 {[%clk 0:00:20]}  Nxa4 {[%clk 0:00:14]} 40. Kxg4 {[%clk 0:00:19]}  Nc5 {[%clk 0:00:14]} 41. Rg5 {[%clk 0:00:18]}  Nxe4 {[%clk 0:00:13]} 42. Re5 {[%clk 0:00:16]}  Nxf2+ {[%clk 0:00:13]} 43. Kg5 {[%clk 0:00:15]}  a4 {[%clk 0:00:08]} 44. h5 {[%clk 0:00:15]}  Rh1 {[%clk 0:00:08]} 45. h6 {[%clk 0:00:13]}  Nd3 {[%clk 0:00:06]} 46. Re3 {[%clk 0:00:12]}  Nb4 {[%clk 0:00:04]} 47. Re4 {[%clk 0:00:11]}  Kb5 {[%clk 0:00:04]} 48. Bf8 {[%clk 0:00:11]}  Nd5 {[%clk 0:00:03]} 49. g4 {[%clk 0:00:08]}  Rh2 {[%clk 0:00:02]} 50. Kg6 {[%clk 0:00:08]}  c5 {[%clk 0:00:02]} 51. h7 {[%clk 0:00:07]}  Rxh7 {[%clk 0:00:02]} 52. Kxh7 {[%clk 0:00:07]}  Nf6+ {[%clk 0:00:02]} 53. Kh8 {[%clk 0:00:03]}  Nxe4 {[%clk 0:00:03]} 54. Be7 {[%clk 0:00:03]}  a3 {[%clk 0:00:03]} 55. g5 {[%clk 0:00:03]}  Nxg5 {[%clk 0:00:04]} 56. Bxg5 {[%clk 0:00:02]}  a2 {[%clk 0:00:05]} 57. Bf6 {[%clk 0:00:02]}  c4 {[%clk 0:00:06]} 58. Kh7 {[%clk 0:00:01]}  Ka4 {[%clk 0:00:07]} 59. Kg6 {[%clk 0:00:02]}  Kb3 {[%clk 0:00:07]} 60. Kf5 {[%clk 0:00:02]}  c3 {[%clk 0:00:08]} 61. Bxc3 {[%clk 0:00:00]}  Kxc3 {[%clk 0:00:09]} 0-1


[Site "https://www.chess.com"]